Cogmind - Beta 16.1 @@@ ROGUE MODE // 2026.04.08 @ 09:19:15 Player: WarMechanic Result: Destroyed by G-34 Mercenary with Small Laser Performance ------------- Evolutions (0) 0 Regions Visited (1) 200 Robots Destroyed (28) 140 Value Destroyed (373) 373 Prototype IDs (0) 0 Alien Tech Used (0) 0 Bonus (0) 0 TOTAL SCORE: 713 Bonus ------- None Cogmind --------- Core Integrity 0/250 Matter 300/300 Energy 100/100 System Corruption 1% Temperature Cool (6) Movement Treading (160) Location -10/Materials Parts ------- > --- POWER (1) -------- (None) > --- PROPULSION (2) --- Light Treads Light Treads > --- UTILITY (2) ------ Large Storage Unit > --- WEAPON (2) ------- (None) > --- INVENTORY (15) --- Light Ion Engine Light Treads Light Treads Heat Sink Medium Matter Pod (100) Structural Scanner Signal Interpreter Improved Terrain Scanner Transport Network Coupler Mining Laser Mining Claw Peak State ------------ > --- POWER ------------ Ion Engine > --- PROPULSION ------- Light Treads Compact Wheel > --- UTILITY ---------- Small Storage Unit Seismic Detector > --- WEAPON ----------- EM Pulse Gun Medium Laser > --- INVENTORY -------- Ion Engine Light Treads Wheel Medium Matter Pod Improved Terrain Scanner Medium Laser Mining Laser Mining Laser [Rating: 8] Favorites ----------- Power Ion Engine Engine Ion Engine Propulsion Light Treads Treads Light Treads Wheel Compact Wheel Utility Seismic Detector Device Seismic Detector Storage Small Storage Unit Weapon Medium Laser Energy Gun Medium Laser Slashing Weapon Mining Claw Build | -11 -10 ------- Run | Yrd Mat Slots Evolved . | . . Power . | . . Propulsion . | . . Utility . | . . Weapon . | . . Parts Attached 21 | 9 12 Power 4 | 1 3 Engine 4 | 1 3 Core . | . . Reactor . | . . Propulsion 10 | 4 6 Treads 6 | 1 5 Leg . | . . Wheel 4 | 3 1 Hover . | . . Flight . | . . Utility 3 | 2 1 Device 1 | 1 . Storage 2 | 1 1 Processor . | . . Hackware . | . . Protection . | . . Artifact . | . . Weapon 4 | 2 2 Energy Gun 3 | 2 1 Energy Cannon . | . . Ballistic Gun . | . . Ballistic Cannon . | . . Launcher . | . . Special Weapon . | . . Impact Weapon . | . . Slashing Weapon 1 | . 1 Piercing Weapon . | . . Special Melee Weapon . | . . Unidentified Prototypes . | . . Parts Lost 10 | . 10 Power 2 | . 2 Propulsion 4 | . 4 Utility 1 | . 1 Weapon 3 | . 3 Highest Loss Streak 6 | . 6 To Critical Strikes . | . . Average Backups 9 | 6 12 Power 1 | . 1 Propulsion 3 | 1 4 Utility 2 | 1 4 Weapon 2 | 1 2 Tool/Special . | . . Unused Backups 15 | 1 14 Power 2 | . 2 Propulsion 4 | . 4 Utility 7 | . 7 Weapon 2 | 1 1 Tool/Special . | . . Average Slot Usage (%) 87 | . 87 Engine 13 | . 13 Treads 15 | . 15 Wheel 11 | . 11 Device 11 | . 11 Storage 14 | . 14 Energy Gun 17 | . 17 Slashing Weapon 1 | . 1 Peak Build Rating 8 | 8 8 Average Rating 7 | 6 7 On Entrance 4 | . 8 Avg Prop Armor Cover (%) 8 | 6 11 Naked Turns . | . . Heaviest Build 30 | 15 30 Greatest Support 40 | 20 40 Greatest Overweight (x) 2 | 1 2 Average Overweight (x) . | . 1 Largest Inventory Capacity 15 | 8 15 Average Capacity 10 | 7 14 Most Carried 15 | 8 15 Average Carried 9 | 6 12 Final Capacity 15 | 8 15 Final Carried 11 | 8 11 Class Distribution -------------------- 100% | Mutant Dominant Class ---------------- Mutant | -10/Materials Resources | -11 -10 ----------- Run | Yrd Mat Matter Collected 476 | 359 117 Remotely . | . . Salvage Created 702 | 259 443 Parts 50 | 25 25 Haulers Intercepted 2 | . 2 Recyclers Shooed . | . . Parts Field Recycled . | . . Retrieved Matter . | . . Parts Self-Destructed . | . . Prevented . | . . Parts Restored . | . . Kills | -11 -10 ------- Run | Yrd Mat Combat Hostiles Destroyed 9 | . 9 Melee 1 | . 1 Guns 7 | . 7 AOE 1 | . 1 Classes Destroyed 8 | 3 5 Worker 4 | 4 . Builder 2 | . 2 Tunneler 9 | 9 . Hauler 2 | . 2 Recycler 1 | 1 . Watcher 1 | . 1 Swarmer 3 | . 3 Grunt 6 | . 6 Best Kill Streak 4 | 4 4 Combat Bots Only 3 | . 3 Max Kills in Single Turn 2 | 1 2 Gunslinging . | . . Exploded 1 | . 1 Melee 1 | . 1 Uniques/NPCs Destroyed . | . . Combat | -11 -10 -------- Run | Yrd Mat Hostile Shots Fired 161 | . 161 Missed 33 | . 33 Hits 128 | . 128 Projectile 128 | . 128 Critical Strikes 2 | . 2 Damage Taken 1515 | . 1515 Core 252 | . 252 Absorbed by Shields . | . . Regen/Repaired (Parts) 37 | . 37 Core Remaining (%) 100 | 100 . Volleys Fired 99 | 33 66 Largest 2 | 2 2 Hottest 100 | 90 100 Shots Fired 154 | 65 89 Gun 154 | 65 89 Cannon . | . . Launcher . | . . Special . | . . Kinetic . | . . Thermal 99 | 32 67 Explosive . | . . Electromagnetic 55 | 33 22 Robot Hit Streak 7 | 5 7 Robot Miss Streak 3 | 3 3 Penetration Max . | . . Secondary Targets 1 | . 1 Max Gunslinging Chain 1 | . 1 Shots Hit Robots 91 | 41 50 Core Hits 44 | 16 28 Critical Kills . | . . Critical Parts Destroyed . | . . Critical Strikes 6 | 3 3 Burn 4 | 1 3 Corrupt 2 | 2 . Melee Attacks 2 | . 2 Impact . | . . Slashing 2 | . 2 Piercing . | . . Sneak Attacks . | . . Combat Hostiles . | . . Follow-up Attacks . | . . Damage Inflicted 1476 | 591 885 Guns 1166 | 504 662 Cannons . | . . Explosions 108 | . 108 Melee . | . . Ramming 202 | 87 115 Kinetic . | . . Thermal 872 | 247 625 Explosive . | . . Electromagnetic 402 | 257 145 Impact . | . . Slashing . | . . Piercing . | . . Highest Corruption 1 | . 1 Average Corruption 1 | . 1 Corruption Purged . | . . Corruption Blocked . | . . Effects 1 | . 1 Message Errors 1 | . 1 Overload Shots . | . . Overflow Damage . | . . Projectiles . | . . Explosions . | . . Melee . | . . Knockbacks 2 | . 2 Impact 2 | . 2 Kinetic . | . . Secondary . | . . Self-Inflicted Damage 8 | . 8 Shots . | . . Rammed 99 | 36 63 Targets Rammed 103 | 39 64 Kicked . | . . Crushed 4 | 3 1 Highest Temperature 341 | 170 341 Average Temperature 83 | 57 100 Received Heat Transfer 825 | . 825 Effects 1 | . 1 Energy Bleed 1 | . 1 Siege Activations . | . . Martial Activations . | . . Shielding Activations . | . . Robots Disrupted . | . . Combat Hostiles . | . . Robots Corrupted . | . . Combat Hostiles . | . . Parts Fried . | . . Impact Corruptions . | . . Robots Melted . | . . Combat Hostiles . | . . Parts Melted 2 | 1 1 Heat Transferred 2703 | 814 1889 Parts Sabotaged . | . . Parts Stolen . | . . Parts Stripped . | . . Power Chain Reactions 2 | . 2 Alert | -11 -10 ------- Run | Yrd Mat Maximum Alert Level . | . . Low Security (%) 100 | 100 100 Level 1 . | . . Level 2 . | . . Level 3 . | . . Level 4 . | . . Level 5 . | . . High Security . | . . Max Security . | . . Peak Influence 78 | 10 78 Initial . | . . Average 10 | . 24 Influence Increases 409 | 70 339 Destroy 0b10 Robot/C 180 | . 180 Destroy 0b10 Robot/NC 95 | 70 25 Destroy Leader 56 | . 56 Successful Hack 6 | . 6 Disable Machine 15 | . 15 Destroy Structure 12 | . 12 Partial Spotted 15 | . 15 Lose Combat Pursuer 30 | . 30 Influence Decreases 409 | 70 339 Time Decay 334 | 70 264 Lost Part 75 | . 75 Squads Dispatched 2 | . 2 Investigation 1 | . 1 Extermination . | . . Reinforcement 1 | . 1 Assault . | . . Garrison . | . . Intercept . | . . Searches Triggered . | . . Construction Impeded . | . . Haulers Reinforced . | . . Active Scanning Responses . | . . Cargo Convoy Interrupts . | . . Stealth | -11 -10 --------- Run | Yrd Mat Distress Signals 1 | . 1 Communications Jammed . | . . Distress Signals . | . . Times Spotted 21 | . 21 Peak Tracking Total 3 | . 3 Tactical Retreats 2 | . 2 Traps | -11 -10 ------- Run | Yrd Mat Traps Triggered 1 | . 1 Indirectly . | . . Trap Hack Attempts . | . . Triggered . | . . Disarmed . | . . Reprogrammed . | . . Reused . | . . Traps Extracted . | . . Installed . | . . Triggered . | . . Machines | -11 -10 ---------- Run | Yrd Mat Machines Disabled 1 | . 1 Max in Single Turn 1 | . 1 Machines Repaired . | . . Machines Dismantled . | . . Machines Sabotaged . | . . Overloaded Fab Kills . | . . Hacking | -11 -10 --------- Run | Yrd Mat Machines Accessed 5 | . 5 Terminals 4 | . 4 Fabricators . | . . Repair Stations 1 | . 1 Recycling Units . | . . Scanalyzers . | . . Garrison Access . | . . Total Hacks 10 | . 10 Successful 5 | . 5 Failed 5 | . 5 Catastrophic 2 | . 2 Database Lockouts . | . . Manual 5 | . 5 Terminals 8 | . 8 Fabricators . | . . Repair Stations 2 | . 2 Recycling Units . | . . Scanalyzers . | . . Garrison Access . | . . Terminal Hacks 2 | . 2 Emergency Access Points 1 | . 1 Terminal Index 1 | . 1 Fabricator Hacks . | . . Repair Station Hacks 2 | . 2 Scan Component 1 | . 1 Repair 1 | . 1 Recycling Unit Hacks . | . . Scanalyzer . | . . Garrison Access Hacks . | . . Unauthorized Hacks 1 | . 1 Terminals 1 | . 1 Assimilate 1 | . 1 Fabricators . | . . Repair Stations . | . . Recycling Units . | . . Scanalyzers . | . . Garrison Access . | . . Data Cores Recovered . | . . Used . | . . Hacking Detections 2 | . 2 Full Trace Events 1 | . 1 Feedback Events . | . . Feedback Blocked . | . . Robot Schematics Acquired . | . . Robots Built . | . . Authchips . | . . Time . | . . Total Robot Build Rating . | . . Part Schematics Acquired . | . . Parts Built . | . . Authchips . | . . Time . | . . Total Part Build Rating . | . . Part Studies Acquired . | . . Parts Repaired 1 | . 1 Time 26 | . 26 Parts Recycled . | . . Recycled Matter . | . . Retrieved Matter . | . . Retrieved Components . | . . Parts Scanalyzed . | . . Part Schematics Acquired . | . . Parts Damaged . | . . Bothacking | -11 -10 ------------ Run | Yrd Mat Used RIF Installer . | . . Robots Hacked . | . . Non-combat . | . . Combat . | . . Robot Hacks Applied . | . . Relay Couplers Released . | . . Fabnet Peak Effective % . | . . Robots Rewired . | . . Allies Hacked . | . . Hacks Repelled . | . . Allies | -11 -10 -------- Run | Yrd Mat Total Allies . | . . Largest Group . | . . Highest-Rated Group . | . . Highest-Rated Ally . | . . Total Orders . | . . Ally Attacks . | . . Total Damage . | . . Kills . | . . Allies Corrupted . | . . Allies Melted . | . . Intel | -11 -10 ------- Run | Yrd Mat Active Infowar (turns) 1707 | 1023 684 Seismic 1707 | 1023 684 Robot Analysis Total . | . . Derelict Logs Recovered . | . . Drone Launches . | . . Drone Recoveries . | . . Exploration | -11 -10 ------------- Run | Yrd Mat Turns Passed 1894 | 1093 801 Spaces Moved 1010 | 658 352 Core 3 | 3 . Treads 474 | 435 39 Legs . | . . Wheels 533 | 220 313 Hover . | . . Flight . | . . Fastest Speed 50 | 50 95 Average Speed 133 | 138 123 Slowest Speed 240 | 160 240 Overloaded Moves . | . . Propulsion Burnouts . | . . Robots Hopped . | . . Potential Cave-ins . | . . Cave-ins Triggered . | . . Exploration Rate (%) 36 | 12 61 Regions Visited 1 Branch Regions . Pre-discovered Areas . | . . Known Exits Taken . | . . Unknown Exits Taken 1 | 1 . Scrap Searched . | . . Spaces Dug 1 | . 1 Terrain Destroyed 9 | . 9 Melee 1 | . 1 Projectile . | . . AOE 8 | . 8 Terrain Rammed . | . . Walls Destroyed . | . . Machines Disabled . | . . Actions | -11 -10 --------- Run | Yrd Mat Total 1321 | 751 570 Wait 45 | . 45 Move 1009 | 657 352 Hop . | . . Pick Up 27 | 11 16 Fast Attach 7 | 6 1 Attach 7 | 1 6 Detach . | . . Swap 10 | 2 8 Drop 12 | 2 10 Fire 99 | 33 66 Melee 2 | . 2 Ram 2 | . 2 Kick . | . . Crush 101 | 39 62 Escape Stasis . | . . Rewire . | . . Trap . | . . Miscellaneous . | . . Route ------- -11/Scrapyard -10/Materials (discovered 2 exits: [*Mat x2]) History --------- Turn | Location | Event 11 | -11/Scrapyard | Discovered new exit (range 14) 1094 | -11/Scrapyard | Entered Materials 1095 | -10/Materials | Build established: Mutant 1282 | -10/Materials | Discovered new exit (range 12) 1320 | -10/Materials | Repaired EM Pulse Gun 1460 | -10/Materials | Discovered new exit (range 6) 1761 | -10/Materials | Core integrity fell below 50% 1870 | -10/Materials | Lost 6 parts (1p3n1u1w) 1872 | -10/Materials | Core integrity fell below 20% 1895 | -10/Materials | Destroyed by G-34 Mercenary with Small Laser Last Messages --------------- 01817_ Acquired 2 matter. 01818_ Slammed into G-34 Mercenary. 01819_ K-01 Serf collects debris. 01819_ Ion Engine destroyed. 01819_ Slammed into G-34 Mercenary. 01822_ K-01 Serf collects debris. 01823_ Slammed into G-34 Mercenary. 01826_ K-01 Serf collects debris. 01826_ Slammed into G-34 Mercenary. 01833_ Acquired 4 matter. 01833_ Slammed into G-34 Mercenary. 01839_ Lgt. Treads destroyed. 01840_ CN WK#DZXU#R|ZKZZJQVPI#I 01840_ Slammed into G-34 Mercenary. 01885_ Lgt. Ion Engine destroyed. 01888_ Slammed into G-34 Mercenary. 01890_ Acquired 4 matter. 01890_ Slammed into G-34 Mercenary. 01891_ Acquired 2 matter. 01892_ Slammed into G-34 Mercenary. Map ----- +----------------------------------------------------+ | ###+####### #????# ?????????????????????????? | | ## #????? ??????????????????????????? | | """ # #?????????????????????????????????? | | "Y # #?????????????????????????????????? | | """ + #?????????????????????????????????? | | """ # #?????????????????????????????????? | | """ # #?????????????????????????????????? | | ! """ ## ##?????????????????????????????????? | | ## ###########????????????????????????? | | #####+##### # #????????????????????????? | | ????# #???# # #?????#??????????????????? | | ????# #???# # #?????# ?????????????????? | | ????# #???# # #?????# ????????????????? | | ???##+##### + #?????# ???????????????? | | ???# # # #?????# ###########????? | | ???# # # #?????# %!!= * #????? | | ???# # # #?????# !%!=% #????? | | ???# # #####+#######???# !*!! #????? | | ???# # #???###########% #????? | | ???# + ##### #####w#???# % % #=% #????? | | ########### #???# #???#%##### %* % # * #????? | | """ ## ##??# #???# %%%%+%%=%% % #% #????? | | "R" # #??# #???# %%%##% =% % +% #????? | | " " # " #??# #???# %%%##%% % "" #=* #????? | | """ + "T #??# ##??# % ##%%=*%"""!# #????? | | """ # #??#^##??#@ "#%%=! """ # #????? | | """ # =#??# ##??# g T# % !=% # #????? | | ## ##??# #???# "########### #????? | | ## #???# #???# ##?????????# #????? | | ######/#### #???# #???# ############ #????? | | # # #???# #???# #????? | | # # #???# #???# #????? | | # # #???# #???# #????? | | # # #???# #???# #????? | | ??#####+### #???# #???# #????? | | ?????# < #???# #???# #????? | | ###### #???# #???# #????? | | !## ######???# #???# ###### #????? | | ## #??####### #???# #????# < #????? | | ## ##?# #???# #????# #????? | | # #?# #???# #????#####????? | | # ### #???# #?????????????? | | + #???# +?????????????? | | # ###########???############?????????????? | | # #??????????????????????????????????????? | | #######??????????????????????????????????????? | | ####?????????????????????????????????????????????? | | | | | | | +----------------------------------------------------+ Best States ------------- Heat Dissipation 25 Energy Generation 10 Energy Capacity 250 Matter Stores 300 Matter Capacity 300 Sight Range 16 Terrain Scan Density 10 Evasion (%) 44 Recoil Reduction 2 Item Schematics ----------------- None Robot Schematics ------------------ None Fabricated ------------ Nothing Repaired ---------- EM Pulse Gun | 17% | -10/Materials Studied --------- None Alien Tech Used ----------------- None Achievements -------------- None Challenges ------------ None Game ------ Seed MediumDeliveryNukerbomber Manual? 0 Play Time 00:16:28 Cumulative 32.5 hours Start 2026.04.08 @ 09:03:45 End 2026.04.08 @ 09:19:15 Sessions 1 Manual Loads 0 Difficulty Rogue Special Mode None Game No. 42 Rogue 42 Adventurer 0 Explorer 0 Win Type - Total 0 Types 0/0/0/0/0/0/0/0/0/0 Lore% 10 Gallery% 14 Achievement% 15 Wizard Run 0 Options --------- Layout 1 ASCII 0 Keyboard 1 Movement Arrows Keybinds 1 Fullscreen 1 Font 24/Crisp Map View 50x35 Zoom Use 0% Tactical HUD 1 Map Filters NONE Filters NONE Steam 1 RUN: ad4b1613-a8e8-4ac7-83da-c1bbb8104aa0